[Event "British Rapidplay Championship 2023"]
[Site "Mercure Bradford, Bankfield Hotel"]
[Date "2023.04.16"]
[Round "11.17"]
[White "Senior, Gary"]
[Black "McCarthy, Damian M"]
[Result "1-0"]
[TimeControl "15 minutes plus 10 seconds per move"]
[WhiteElo "1911"]
[BlackElo "1860"]

1. e4 {[%clk 00:15:19]} c5 {[%clk 00:15:20]} {[%emt 00:00:01]} 2. Nf3 {[%clk
00:15:25]} {[%emt 00:00:04]} e6 {[%clk 00:15:27]} {[%emt 00:00:03]} 3. d3
{[%clk 00:15:30]} {[%emt 00:00:04]} Nc6 {[%clk 00:15:33]} {[%emt 00:00:04]} 4.
g3 {[%clk 00:15:38]} {[%emt 00:00:02]} g6 {[%clk 00:15:39]} {[%emt 00:00:05]} 5.
Bg5 {[%clk 00:15:33]} {[%emt 00:00:13]} Qb6 {[%clk 00:15:29]} {[%emt 00:00:21]}
6. Qc1 {[%clk 00:15:36]} {[%emt 00:00:07]} Bg7 {[%clk 00:15:32]} {[%emt
00:00:07]} 7. c3 {[%clk 00:15:20]} {[%emt 00:00:25]} d6 {[%clk 00:14:58]}
{[%emt 00:00:44]} 8. Na3 {[%clk 00:14:38]} {[%emt 00:00:52]} h5 {[%clk
00:14:10]} {[%emt 00:00:58]} 9. Nc4 {[%clk 00:13:40]} {[%emt 00:01:09]} Qc7
{[%clk 00:14:18]} {[%emt 00:00:02]} 10. a4 {[%clk 00:13:15]} {[%emt 00:00:35]}
Nge7 {[%clk 00:14:08]} {[%emt 00:00:20]} 11. Bg2 {[%clk 00:11:44]} {[%emt
00:01:40]} b6 {[%clk 00:13:35]} {[%emt 00:00:44]} 12. O-O {[%clk 00:10:18]}
{[%emt 00:01:35]} e5 {[%clk 00:11:37]} {[%emt 00:02:08]} 13. Qd2 {[%clk
00:08:08]} {[%emt 00:02:20]} O-O {[%clk 00:11:30]} {[%emt 00:00:17]} 14. Bh6
{[%clk 00:08:03]} {[%emt 00:00:15]} f6 {[%clk 00:11:22]} {[%emt 00:00:19]} 15.
Rac1 {[%clk 00:07:13]} {[%emt 00:00:59]} Kh7 {[%clk 00:11:10]} {[%emt
00:00:22]} 16. Bxg7 {[%clk 00:07:19]} {[%emt 00:00:04]} Kxg7 {[%clk 00:11:18]}
{[%emt 00:00:02]} 17. h4 {[%clk 00:06:16]} {[%emt 00:01:12]} Be6 {[%clk
00:11:01]} {[%emt 00:00:28]} 18. Ne3 {[%clk 00:06:08]} {[%emt 00:00:18]} a6
{[%clk 00:10:56]} {[%emt 00:00:16]} 19. d4 {[%clk 00:06:00]} {[%emt 00:00:17]}
Bf7 {[%clk 00:10:35]} {[%emt 00:00:31]} 20. Qc2 {[%clk 00:04:10]} {[%emt
00:02:00]} Na5 {[%clk 00:09:44]} {[%emt 00:01:01]} 21. d5 {[%clk 00:03:40]}
{[%emt 00:00:39]} b5 {[%clk 00:09:12]} {[%emt 00:00:43]} 22. b4 {[%clk
00:03:17]} {[%emt 00:00:33]} Nb7 {[%clk 00:09:11]} {[%emt 00:00:11]} 23. a5
{[%clk 00:03:14]} {[%emt 00:00:13]} cxb4 {[%clk 00:08:54]} {[%emt 00:00:28]} 24.
cxb4 {[%clk 00:03:21]} {[%emt 00:00:03]} Qxc2 {[%clk 00:08:52]} {[%emt
00:00:11]} 25. Rxc2 {[%clk 00:03:30]} Rac8 {[%clk 00:08:57]} {[%emt 00:00:06]}
26. Rfc1 {[%clk 00:03:37]} {[%emt 00:00:02]} Rxc2 {[%clk 00:09:04]} {[%emt
00:00:03]} 27. Rxc2 {[%clk 00:03:46]} {[%emt 00:00:02]} Rc8 {[%clk 00:09:13]}
{[%emt 00:00:01]} 28. Rxc8 {[%clk 00:03:41]} {[%emt 00:00:15]} Nxc8 {[%clk
00:09:22]} {[%emt 00:00:01]} 29. Bh3 {[%clk 00:03:45]} {[%emt 00:00:05]} Ne7
{[%clk 00:09:17]} {[%emt 00:00:15]} 30. Bd7 {[%clk 00:03:11]} {[%emt 00:00:43]}
Nd8 {[%clk 00:08:35]} {[%emt 00:00:53]} 31. Nd1 {[%clk 00:02:59]} {[%emt
00:00:21]} Kf8 {[%clk 00:08:32]} {[%emt 00:00:13]} 32. Nc3 {[%clk 00:02:47]}
{[%emt 00:00:22]} Be8 {[%clk 00:08:37]} {[%emt 00:00:06]} 33. Be6 {[%clk
00:02:27]} {[%emt 00:00:29]} Bf7 {[%clk 00:08:10]} {[%emt 00:00:37]} 34. Bh3
{[%clk 00:02:17]} {[%emt 00:00:20]} Be8 {[%clk 00:07:55]} {[%emt 00:00:25]} 35.
Nd2 {[%clk 00:02:11]} {[%emt 00:00:16]} Nf7 {[%clk 00:07:47]} {[%emt 00:00:18]}
36. Ndb1 {[%clk 00:02:12]} {[%emt 00:00:09]} Nh6 {[%clk 00:07:46]} {[%emt
00:00:11]} 37. Be6 {[%clk 00:02:14]} {[%emt 00:00:08]} Bf7 {[%clk 00:07:32]}
{[%emt 00:00:24]} 38. Na3 {[%clk 00:02:02]} {[%emt 00:00:23]} Be8 {[%clk
00:06:57]} {[%emt 00:00:45]} 39. Naxb5 {[%clk 00:01:56]} {[%emt 00:00:15]} Nxd5
{[%clk 00:02:59]} {[%emt 00:04:08]} 40. Bxd5 {[%clk 00:01:22]} {[%emt
00:00:45]} 1-0

[Event "British Rapidplay Championship 2023"]
[Site "Mercure Bradford, Bankfield Hotel"]
[Date "2023.04.16"]
[Round "11.19"]
[White "Zhao, George"]
[Black "Ciuravin, Andrei"]
[Result "0-1"]
[TimeControl "15 minutes plus 10 seconds per move"]
[WhiteElo "1675"]
[BlackElo "2185"]

1. d4 {[%clk 00:15:19]} d6 {[%clk 00:14:45]} {[%emt 00:00:35]} 2. Nf3 {[%clk
00:15:27]} {[%emt 00:00:02]} c6 {[%clk 00:14:50]} {[%emt 00:00:06]} 3. g3
{[%clk 00:15:35]} {[%emt 00:00:01]} g6 {[%clk 00:14:58]} {[%emt 00:00:02]} 4.
Bg2 {[%clk 00:15:44]} Bg7 {[%clk 00:15:07]} {[%emt 00:00:01]} 5. O-O {[%clk
00:15:52]} {[%emt 00:00:02]} Nf6 {[%clk 00:15:15]} {[%emt 00:00:02]} 6. c4
{[%clk 00:16:01]} {[%emt 00:00:02]} Nbd7 {[%clk 00:15:23]} {[%emt 00:00:01]} 7.
Nc3 {[%clk 00:16:09]} {[%emt 00:00:01]} O-O {[%clk 00:15:32]} {[%emt 00:00:03]}
8. e4 {[%clk 00:16:16]} {[%emt 00:00:02]} Qc7 {[%clk 00:15:39]} {[%emt
00:00:03]} 9. h3 {[%clk 00:16:21]} {[%emt 00:00:05]} a6 {[%clk 00:15:46]}
{[%emt 00:00:04]} 10. Be3 {[%clk 00:16:29]} {[%emt 00:00:02]} Rb8 {[%clk
00:15:49]} {[%emt 00:00:07]} 11. Rc1 {[%clk 00:16:32]} {[%emt 00:00:07]} e5
{[%clk 00:15:28]} {[%emt 00:00:30]} 12. c5 {[%clk 00:14:15]} {[%emt 00:02:27]}
dxc5 {[%clk 00:13:56]} {[%emt 00:01:42]} 13. dxc5 {[%clk 00:11:19]} {[%emt
00:03:05]} Re8 {[%clk 00:14:01]} {[%emt 00:00:06]} 14. Qb3 {[%clk 00:11:07]}
{[%emt 00:00:23]} Nf8 {[%clk 00:13:59]} {[%emt 00:00:11]} 15. Rfd1 {[%clk
00:10:08]} {[%emt 00:01:09]} Be6 {[%clk 00:13:48]} {[%emt 00:00:22]} 16. Qa3
{[%clk 00:09:53]} {[%emt 00:00:25]} Rbd8 {[%clk 00:13:29]} {[%emt 00:00:29]} 17.
Rd6 {[%clk 00:08:55]} {[%emt 00:01:07]} N8d7 {[%clk 00:12:30]} {[%emt
00:01:09]} 18. Rcd1 {[%clk 00:08:15]} {[%emt 00:00:50]} Bf8 {[%clk 00:12:35]}
{[%emt 00:00:05]} 19. R6d2 {[%clk 00:07:59]} {[%emt 00:00:27]} h6 {[%clk
00:12:42]} {[%emt 00:00:02]} 20. b4 {[%clk 00:07:32]} {[%emt 00:00:38]} g5
{[%clk 00:10:34]} {[%emt 00:02:17]} 21. g4 {[%clk 00:07:11]} {[%emt 00:00:31]}
Be7 {[%clk 00:10:24]} {[%emt 00:00:20]} 22. Qb2 {[%clk 00:06:53]} {[%emt
00:00:29]} a5 {[%clk 00:08:56]} {[%emt 00:01:38]} 23. a3 {[%clk 00:06:28]}
{[%emt 00:00:35]} axb4 {[%clk 00:09:04]} {[%emt 00:00:02]} 24. axb4 {[%clk
00:06:35]} {[%emt 00:00:03]} Ra8 {[%clk 00:09:12]} {[%emt 00:00:01]} 25. Ra1
{[%clk 00:06:14]} {[%emt 00:00:32]} Nf8 {[%clk 00:08:47]} {[%emt 00:00:35]} 26.
Na4 {[%clk 00:06:05]} {[%emt 00:00:18]} Nxe4 {[%clk 00:08:47]} {[%emt
00:00:10]} 27. Rdd1 {[%emt 00:00:12]} Ng6 {[%clk 00:08:53]} {[%emt 00:00:02]}
28. Nb6 {[%clk 00:04:42]} {[%emt 00:01:34]} Rxa1 {[%clk 00:08:54]} {[%emt
00:00:08]} 29. Rxa1 {[%clk 00:04:49]} {[%emt 00:00:03]} Nf6 {[%clk 00:09:02]}
{[%emt 00:00:02]} 30. Nd2 {[%clk 00:03:20]} {[%emt 00:01:39]} Nd5 {[%clk
00:09:09]} {[%emt 00:00:03]} 31. Qa3 {[%clk 00:02:17]} {[%emt 00:01:14]} Ngf4
{[%clk 00:08:11]} {[%emt 00:01:08]} 32. Nxd5 {[%clk 00:01:33]} {[%emt
00:00:53]} Nxd5 {[%clk 00:08:15]} {[%emt 00:00:06]} 33. Nc4 {[%clk 00:01:18]}
{[%emt 00:00:26]} Nf4 {[%clk 00:07:48]} {[%emt 00:00:37]} 34. Bxf4 {[%clk
00:01:03]} {[%emt 00:00:25]} Bxc4 {[%clk 00:07:42]} {[%emt 00:00:15]} 35. Bg3
{[%clk 00:00:43]} {[%emt 00:00:30]} Bf6 {[%clk 00:07:48]} {[%emt 00:00:03]} 36.
Rd1 {[%clk 00:00:30]} {[%emt 00:00:24]} Rd8 {[%clk 00:06:41]} {[%emt 00:01:17]}
37. Re1 {[%clk 00:00:22]} {[%emt 00:00:18]} Bd5 {[%clk 00:06:47]} {[%emt
00:00:04]} 38. Bf1 {[%clk 00:00:27]} {[%emt 00:00:05]} Re8 {[%clk 00:06:49]}
{[%emt 00:00:08]} 39. Qc3 {[%clk 00:00:35]} {[%emt 00:00:03]} Qe7 {[%clk
00:06:45]} {[%emt 00:00:14]} 40. Qd2 {[%clk 00:00:33]} {[%emt 00:00:11]} Qe6
{[%clk 00:04:58]} {[%emt 00:01:57]} 41. Bd3 {[%clk 00:00:20]} {[%emt 00:00:24]}
Bf3 {[%clk 00:03:59]} {[%emt 00:01:08]} 0-1

[Event "British Rapidplay Championship 2023"]
[Site "Mercure Bradford, Bankfield Hotel"]
[Date "2023.04.16"]
[Round "11.20"]
[White "Nicholson, Jim WR"]
[Black "Hutchinson, Paul A"]
[Result "0-1"]
[TimeControl "15 minutes plus 10 seconds per move"]
[WhiteElo "1958"]
[BlackElo "2184"]

1. d4 {[%clk 00:15:17]} {[%emt 00:00:02]} d5 {[%clk 00:15:19]} {[%emt
00:00:02]} 2. Bf4 {[%clk 00:15:24]} {[%emt 00:00:03]} Nf6 {[%clk 00:15:15]}
{[%emt 00:00:15]} 3. e3 {[%clk 00:15:18]} {[%emt 00:00:15]} e6 {[%clk
00:15:22]} {[%emt 00:00:02]} 4. Nd2 {[%clk 00:15:24]} {[%emt 00:00:04]} Bd6
{[%clk 00:15:30]} {[%emt 00:00:03]} 5. Bg3 {[%clk 00:15:30]} {[%emt 00:00:05]}
c6 {[%clk 00:15:07]} {[%emt 00:00:32]} 6. c3 {[%clk 00:15:35]} {[%emt
00:00:05]} Qc7 {[%clk 00:15:15]} {[%emt 00:00:02]} 7. Bd3 {[%clk 00:15:27]}
{[%emt 00:00:17]} Nbd7 {[%clk 00:15:23]} {[%emt 00:00:03]} 8. Bxd6 {[%clk
00:15:24]} {[%emt 00:00:13]} Qxd6 {[%clk 00:15:31]} {[%emt 00:00:02]} 9. f4
{[%clk 00:15:32]} {[%emt 00:00:02]} c5 {[%clk 00:14:34]} {[%emt 00:01:07]} 10.
Ngf3 {[%clk 00:15:37]} {[%emt 00:00:04]} b6 {[%clk 00:14:41]} {[%emt 00:00:04]}
11. O-O {[%clk 00:15:27]} {[%emt 00:00:19]} Bb7 {[%clk 00:14:50]} {[%emt
00:00:02]} 12. Ne5 {[%clk 00:15:08]} {[%emt 00:00:28]} Ne4 {[%clk 00:14:42]}
{[%emt 00:00:19]} 13. Nxe4 {[%clk 00:14:56]} {[%emt 00:00:23]} dxe4 {[%clk
00:14:48]} {[%emt 00:00:02]} 14. Bb5 {[%clk 00:14:59]} {[%emt 00:00:07]} O-O
{[%clk 00:13:41]} {[%emt 00:01:17]} 15. Nxd7 {[%clk 00:13:49]} {[%emt
00:01:20]} a6 {[%clk 00:13:50]} {[%emt 00:00:02]} 16. Ba4 {[%clk 00:13:31]}
{[%emt 00:00:27]} Rfd8 {[%clk 00:11:59]} {[%emt 00:02:01]} 17. Ne5 {[%clk
00:13:14]} {[%emt 00:00:27]} b5 {[%clk 00:12:06]} {[%emt 00:00:03]} 18. Bc2
{[%clk 00:13:16]} {[%emt 00:00:08]} f6 {[%clk 00:12:03]} {[%emt 00:00:13]} 19.
Ng4 {[%clk 00:13:16]} {[%emt 00:00:09]} Rac8 {[%clk 00:12:00]} {[%emt
00:00:15]} 20. Rc1 {[%clk 00:12:57]} {[%emt 00:00:29]} b4 {[%clk 00:12:01]}
{[%emt 00:00:09]} 21. Qe1 {[%clk 00:12:33]} {[%emt 00:00:34]} Qb6 {[%clk
00:11:56]} {[%emt 00:00:15]} 22. Bb1 {[%clk 00:12:12]} {[%emt 00:00:31]} a5
{[%clk 00:11:14]} {[%emt 00:00:52]} 23. Qf2 {[%clk 00:11:09]} {[%emt 00:01:13]}
h5 {[%clk 00:11:15]} {[%emt 00:00:09]} 24. Nxf6+ {[%clk 00:10:44]} {[%emt
00:00:35]} gxf6 {[%clk 00:11:23]} {[%emt 00:00:02]} 25. Qh4 {[%clk 00:10:52]}
{[%emt 00:00:02]} f5 {[%clk 00:11:00]} {[%emt 00:00:33]} 26. Qg5+ {[%clk
00:10:29]} {[%emt 00:00:32]} Kf8 {[%clk 00:10:59]} {[%emt 00:00:11]} 27. Qxh5
{[%clk 00:10:25]} {[%emt 00:00:14]} Rd7 {[%clk 00:10:53]} {[%emt 00:00:16]} 28.
Qh8+ {[%clk 00:10:10]} {[%emt 00:00:25]} Ke7 {[%clk 00:10:44]} {[%emt
00:00:20]} 29. Qe5 {[%clk 00:09:58]} {[%emt 00:00:22]} c4 {[%clk 00:10:23]}
{[%emt 00:00:32]} 30. Kh1 {[%clk 00:09:39]} {[%emt 00:00:29]} Rg8 {[%clk
00:09:29]} {[%emt 00:01:03]} 31. Qc5+ {[%clk 00:09:11]} {[%emt 00:00:37]} Qxc5
{[%clk 00:09:28]} {[%emt 00:00:12]} 32. dxc5 {[%clk 00:09:20]} {[%emt
00:00:01]} Bd5 {[%clk 00:09:36]} {[%emt 00:00:02]} 33. Bc2 {[%clk 00:08:56]}
{[%emt 00:00:34]} Kf6 {[%clk 00:09:44]} {[%emt 00:00:02]} 34. b3 {[%clk
00:08:34]} {[%emt 00:00:32]} Rh7 {[%clk 00:09:48]} {[%emt 00:00:04]} 35. Rf2
{[%clk 00:08:03]} {[%emt 00:00:41]} Rc8 {[%clk 00:08:30]} {[%emt 00:01:30]} 36.
cxb4 {[%clk 00:08:04]} {[%emt 00:00:09]} axb4 {[%clk 00:08:38]} {[%emt
00:00:02]} 37. bxc4 {[%clk 00:08:01]} {[%emt 00:00:13]} Bxc4 {[%clk 00:08:38]}
{[%emt 00:00:09]} 38. Bb3 {[%clk 00:08:03]} {[%emt 00:00:09]} Bd3 {[%clk
00:08:47]} {[%emt 00:00:01]} 39. Ba4 {[%clk 00:07:11]} {[%emt 00:01:01]} Ra7
{[%clk 00:08:50]} {[%emt 00:00:08]} 40. Bb3 {[%clk 00:07:06]} {[%emt 00:00:15]}
Ra5 {[%clk 00:08:58]} {[%emt 00:00:01]} 41. g4 {[%clk 00:06:30]} {[%emt
00:00:47]} fxg4 {[%clk 00:09:07]} {[%emt 00:00:01]} 42. Rg1 {[%clk 00:06:20]}
{[%emt 00:00:20]} Rg8 {[%clk 00:07:40]} {[%emt 00:01:37]} 43. f5 {[%clk
00:06:15]} {[%emt 00:00:15]} g3 {[%clk 00:07:13]} {[%emt 00:00:36]} 44. hxg3
{[%clk 00:05:42]} {[%emt 00:00:43]} Rh8+ {[%clk 00:07:21]} {[%emt 00:00:03]} 45.
Kg2 {[%clk 00:05:49]} {[%emt 00:00:03]} exf5 {[%clk 00:07:25]} {[%emt
00:00:06]} 46. g4 {[%clk 00:05:45]} {[%emt 00:00:13]} Rxc5 {[%clk 00:07:34]}
{[%emt 00:00:02]} 47. Rxf5+ {[%clk 00:05:03]} {[%emt 00:00:51]} Rxf5 {[%clk
00:07:43]} {[%emt 00:00:02]} 48. gxf5 {[%clk 00:05:12]} {[%emt 00:00:01]} Kxf5
{[%clk 00:07:51]} {[%emt 00:00:01]} 49. Rc1 {[%clk 00:05:19]} {[%emt 00:00:04]}
Rb8 {[%clk 00:07:14]} {[%emt 00:00:47]} 50. Rc5+ {[%clk 00:05:21]} {[%emt
00:00:07]} Kf6 {[%clk 00:06:51]} {[%emt 00:00:34]} 51. Kg3 {[%clk 00:05:21]}
{[%emt 00:00:10]} Rb5 {[%clk 00:06:27]} {[%emt 00:00:34]} 52. Rc6+ {[%clk
00:05:07]} {[%emt 00:00:25]} Kg5 {[%clk 00:06:13]} {[%emt 00:00:23]} 53. Bc4
{[%clk 00:04:42]} {[%emt 00:00:32]} Ra5 {[%clk 00:05:56]} {[%emt 00:00:29]} 54.
Bb3 {[%clk 00:04:29]} {[%emt 00:00:23]} Rf5 {[%clk 00:06:04]} {[%emt 00:00:02]}
55. Rb6 {[%clk 00:04:10]} {[%emt 00:00:30]} Rf3+ {[%clk 00:06:10]} {[%emt
00:00:05]} 56. Kg2 {[%clk 00:04:17]} {[%emt 00:00:02]} Rxe3 {[%clk 00:06:17]}
{[%emt 00:00:03]} 57. Rxb4 {[%clk 00:04:26]} {[%emt 00:00:02]} Kf4 {[%clk
00:06:19]} {[%emt 00:00:06]} 58. Rb8 {[%clk 00:04:01]} {[%emt 00:00:36]} Rg3+
{[%clk 00:05:39]} {[%emt 00:00:50]} 59. Kh2 {[%clk 00:04:04]} {[%emt 00:00:04]}
Rg7 {[%clk 00:05:42]} {[%emt 00:00:09]} 60. Rf8+ {[%clk 00:03:57]} {[%emt
00:00:18]} Ke3 {[%clk 00:05:51]} {[%emt 00:00:01]} 61. Bd5 {[%clk 00:03:59]}
{[%emt 00:00:05]} Kd2 {[%clk 00:05:54]} {[%emt 00:00:09]} 62. Bxe4 {[%clk
00:04:03]} {[%emt 00:00:06]} Bxe4 {[%clk 00:06:03]} {[%emt 00:00:02]} 63. a4
{[%clk 00:04:07]} {[%emt 00:00:06]} Ke3 {[%clk 00:06:10]} {[%emt 00:00:03]} 64.
a5 {[%clk 00:04:14]} {[%emt 00:00:03]} Bf3 {[%clk 00:06:18]} {[%emt 00:00:01]}
65. Re8+ {[%clk 00:04:17]} {[%emt 00:00:08]} Kf2 {[%clk 00:06:26]} {[%emt
00:00:02]} 66. Rh8 {[%clk 00:04:16]} {[%emt 00:00:10]} Rg5 {[%clk 00:06:33]}
{[%emt 00:00:04]} 67. a6 {[%clk 00:04:17]} {[%emt 00:00:09]} Ra5 {[%clk
00:06:41]} {[%emt 00:00:01]} 68. Rh6 {[%clk 00:04:18]} {[%emt 00:00:09]} Ra1
{[%clk 00:06:50]} {[%emt 00:00:02]} 0-1

[Event "British Rapidplay Championship 2023"]
[Site "Mercure Bradford, Bankfield Hotel"]
[Date "2023.04.16"]
[Round "11.21"]
[White "Ackley, Peter JE"]
[Black "Sivanandan, Bodhana"]
[Result "1/2-1/2"]
[TimeControl "15 minutes plus 10 seconds per move"]
[WhiteElo "2151"]
[BlackElo "1561"]

1. c4 {[%clk 00:15:19]} {[%emt 00:35:29]} e5 {[%clk 00:15:14]} {[%emt
00:00:06]} 2. Nc3 {[%clk 00:15:27]} {[%emt 00:00:02]} Nc6 {[%clk 00:15:19]}
{[%emt 00:00:06]} 3. Nf3 {[%clk 00:15:31]} {[%emt 00:00:05]} f5 {[%clk
00:15:10]} {[%emt 00:00:19]} 4. d4 {[%clk 00:15:18]} {[%emt 00:00:23]} exd4
{[%clk 00:15:05]} {[%emt 00:00:14]} 5. Nxd4 {[%clk 00:15:24]} {[%emt 00:00:05]}
Nxd4 {[%clk 00:15:10]} {[%emt 00:00:05]} 6. Qxd4 {[%clk 00:15:31]} {[%emt
00:00:03]} Nf6 {[%clk 00:15:10]} {[%emt 00:00:10]} 7. Qe5+ {[%clk 00:14:34]}
{[%emt 00:01:07]} Be7 {[%clk 00:15:08]} {[%emt 00:00:13]} 8. Qxf5 {[%clk
00:14:41]} {[%emt 00:00:02]} O-O {[%clk 00:14:55]} {[%emt 00:00:23]} 9. Qd3
{[%clk 00:14:21]} {[%emt 00:00:30]} b6 {[%clk 00:14:17]} {[%emt 00:00:48]} 10.
e4 {[%clk 00:13:48]} {[%emt 00:00:43]} Bb7 {[%clk 00:14:09]} {[%emt 00:00:18]}
11. f3 {[%clk 00:13:43]} {[%emt 00:00:15]} d6 {[%clk 00:12:19]} {[%emt
00:02:01]} 12. Be3 {[%clk 00:12:27]} {[%emt 00:01:25]} Nd7 {[%clk 00:11:12]}
{[%emt 00:01:18]} 13. Qc2 {[%clk 00:12:32]} {[%emt 00:00:04]} a5 {[%clk
00:10:13]} {[%emt 00:01:09]} 14. Nd5 {[%clk 00:12:03]} {[%emt 00:00:39]} Bxd5
{[%clk 00:08:47]} {[%emt 00:01:36]} 15. cxd5 {[%clk 00:12:04]} {[%emt
00:00:09]} Bf6 {[%clk 00:08:52]} {[%emt 00:00:06]} 16. Bb5 {[%clk 00:11:41]}
{[%emt 00:00:32]} Nc5 {[%clk 00:08:00]} {[%emt 00:01:02]} 17. O-O {[%clk
00:11:29]} {[%emt 00:00:22]} Qe7 {[%clk 00:07:04]} {[%emt 00:01:06]} 18. Rae1
{[%clk 00:10:19]} {[%emt 00:01:20]} Qe5 {[%clk 00:06:24]} {[%emt 00:00:50]} 19.
b3 {[%clk 00:10:10]} {[%emt 00:00:19]} Bg5 {[%clk 00:05:38]} {[%emt 00:00:56]}
20. Bxg5 {[%clk 00:09:31]} {[%emt 00:00:49]} Qxg5 {[%clk 00:05:41]} {[%emt
00:00:07]} 21. Qc1 {[%clk 00:09:38]} {[%emt 00:00:02]} Qxc1 {[%clk 00:05:20]}
{[%emt 00:00:32]} 22. Rxc1 {[%clk 00:09:46]} {[%emt 00:00:02]} Rf7 {[%clk
00:05:28]} {[%emt 00:00:02]} 23. Rf2 {[%clk 00:09:11]} {[%emt 00:00:44]} Raf8
{[%clk 00:04:54]} {[%emt 00:00:45]} 24. Rcc2 {[%clk 00:09:19]} {[%emt
00:00:01]} h6 {[%clk 00:04:58]} {[%emt 00:00:07]} 25. Bc4 {[%clk 00:07:46]}
{[%emt 00:01:44]} Re7 {[%clk 00:04:43]} {[%emt 00:00:24]} 26. Kf1 {[%clk
00:07:26]} {[%emt 00:00:30]} g5 {[%clk 00:04:13]} {[%emt 00:00:40]} 27. a3
{[%clk 00:06:40]} {[%emt 00:00:57]} b5 {[%clk 00:03:54]} {[%emt 00:00:29]} 28.
Bxb5 {[%clk 00:06:38]} {[%emt 00:00:10]} Nxb3 {[%clk 00:04:01]} {[%emt
00:00:04]} 29. h3 {[%clk 00:06:02]} {[%emt 00:00:46]} Kg7 {[%clk 00:03:33]}
{[%emt 00:00:38]} 30. Rb2 {[%clk 00:05:21]} {[%emt 00:00:50]} Nc5 {[%clk
00:03:27]} {[%emt 00:00:17]} 31. Ke1 {[%clk 00:05:03]} {[%emt 00:00:29]} Kg6
{[%clk 00:03:06]} {[%emt 00:00:31]} 32. Rfd2 {[%clk 00:03:50]} {[%emt
00:01:21]} h5 {[%clk 00:02:55]} {[%emt 00:00:21]} 33. Be2 {[%clk 00:03:48]}
{[%emt 00:00:13]} g4 {[%clk 00:02:40]} {[%emt 00:00:26]} 34. hxg4 {[%clk
00:03:50]} {[%emt 00:00:07]} hxg4 {[%clk 00:02:48]} {[%emt 00:00:02]} 35. Rb5
{[%clk 00:03:10]} {[%emt 00:00:50]} gxf3 {[%clk 00:02:20]} {[%emt 00:00:38]} 36.
gxf3 {[%clk 00:03:15]} {[%emt 00:00:06]} Kg5 {[%clk 00:02:25]} {[%emt
00:00:04]} 37. Rdb2 {[%clk 00:02:27]} {[%emt 00:00:58]} a4 {[%clk 00:02:10]}
{[%emt 00:00:26]} 38. Rb8 {[%clk 00:02:33]} {[%emt 00:00:03]} Rxb8 {[%clk
00:01:04]} {[%emt 00:01:17]} 39. Rxb8 {[%clk 00:02:42]} {[%emt 00:00:01]} Kf4
{[%clk 00:01:09]} {[%emt 00:00:05]} 40. Kd2 {[%clk 00:02:20]} {[%emt 00:00:32]}
Rf7 {[%clk 00:01:07]} {[%emt 00:00:12]} 41. Bd1 {[%clk 00:02:08]} {[%emt
00:00:21]} Rf6 {[%clk 00:00:45]} {[%emt 00:00:33]} 42. Rb4 {[%clk 00:02:02]}
{[%emt 00:00:15]} Rf8 {[%clk 00:00:44]} {[%emt 00:00:11]} 43. Kc3 {[%clk
00:01:10]} {[%emt 00:01:03]} Ke3 {[%clk 00:00:42]} {[%emt 00:00:11]} 44. Kc4
{[%clk 00:00:39]} {[%emt 00:00:41]} Kd2 {[%clk 00:00:34]} {[%emt 00:00:19]} 45.
Bxa4 {[%clk 00:00:29]} {[%emt 00:00:20]} Rxf3 {[%clk 00:00:41]} {[%emt
00:00:02]} 46. Be8 {[%clk 00:00:13]} {[%emt 00:00:26]} Rxa3 {[%clk 00:00:36]}
{[%emt 00:00:16]} 47. Kb5 {[%clk 00:00:13]} {[%emt 00:00:09]} Rc3 {[%clk
00:00:35]} {[%emt 00:00:12]} 48. Bg6 {[%clk 00:00:14]} {[%emt 00:00:08]} Ke3
{[%clk 00:00:34]} {[%emt 00:00:11]} 49. Bh7 {[%clk 00:00:12]} {[%emt 00:00:13]}
Kf4 {[%clk 00:00:32]} {[%emt 00:00:12]} 50. Bg6 {[%clk 00:00:19]} {[%emt
00:00:02]} Ke3 {[%clk 00:00:33]} {[%emt 00:00:09]} 51. Bh7 {[%clk 00:00:28]}
{[%emt 00:00:02]} Kf4 {[%clk 00:00:39]} {[%emt 00:00:04]} 52. Bg6 {[%clk
00:00:36]} {[%emt 00:00:02]} Ke3 {[%clk 00:00:46]} {[%emt 00:00:02]} 53. Bh7
{[%clk 00:00:45]} {[%emt 00:00:02]} 1/2-1/2

[Event "British Rapidplay Championship 2023"]
[Site "Mercure Bradford, Bankfield Hotel"]
[Date "2023.04.16"]
[Round "11.22"]
[White "Walton, Alan J"]
[Black "Buckley, Colm"]
[Result "1/2-1/2"]
[TimeControl "15 minutes plus 10 seconds per move"]
[WhiteElo "2105"]
[BlackElo "1870"]

1. d4 {[%clk 00:15:18]} {[%emt 00:00:02]} e6 {[%clk 00:15:19]} {[%emt
00:00:02]} 2. Nf3 {[%clk 00:15:23]} {[%emt 00:00:05]} Nf6 {[%clk 00:15:20]}
{[%emt 00:00:09]} 3. c4 {[%clk 00:15:11]} {[%emt 00:00:23]} d5 {[%clk
00:15:18]} {[%emt 00:00:12]} 4. cxd5 {[%clk 00:15:13]} {[%emt 00:00:08]} exd5
{[%clk 00:15:20]} {[%emt 00:00:07]} 5. Nc3 {[%clk 00:15:22]} {[%emt 00:00:01]}
c6 {[%clk 00:15:23]} {[%emt 00:00:07]} 6. Bg5 {[%clk 00:15:20]} {[%emt
00:00:12]} h6 {[%clk 00:15:10]} {[%emt 00:00:23]} 7. Bh4 {[%clk 00:15:28]}
{[%emt 00:00:01]} Be7 {[%clk 00:15:18]} {[%emt 00:00:03]} 8. e3 {[%clk
00:15:36]} {[%emt 00:00:02]} Bf5 {[%clk 00:15:19]} {[%emt 00:00:08]} 9. Bd3
{[%clk 00:15:40]} {[%emt 00:00:06]} Bxd3 {[%clk 00:15:21]} {[%emt 00:00:08]} 10.
Qxd3 {[%clk 00:15:47]} {[%emt 00:00:03]} Nbd7 {[%clk 00:15:05]} {[%emt
00:00:26]} 11. O-O {[%clk 00:15:46]} {[%emt 00:00:11]} O-O {[%clk 00:15:04]}
{[%emt 00:00:11]} 12. Rab1 {[%clk 00:15:51]} {[%emt 00:00:05]} a5 {[%clk
00:14:29]} {[%emt 00:00:45]} 13. Rfc1 {[%clk 00:15:52]} {[%emt 00:00:09]} Re8
{[%clk 00:13:21]} {[%emt 00:01:18]} 14. a3 {[%clk 00:15:59]} {[%emt 00:00:04]}
Bd6 {[%clk 00:09:39]} {[%emt 00:03:52]} 15. b4 {[%clk 00:15:59]} {[%emt
00:00:09]} axb4 {[%clk 00:09:25]} {[%emt 00:00:25]} 16. axb4 {[%clk 00:16:07]}
{[%emt 00:00:01]} Ra3 {[%clk 00:08:15]} {[%emt 00:01:19]} 17. Qc2 {[%clk
00:15:27]} {[%emt 00:00:50]} Qa8 {[%clk 00:07:51]} {[%emt 00:00:34]} 18. b5
{[%clk 00:15:16]} {[%emt 00:00:22]} Rc8 {[%clk 00:06:08]} {[%emt 00:01:53]} 19.
Qb2 {[%clk 00:15:07]} {[%emt 00:00:18]} Ra5 {[%clk 00:05:37]} {[%emt 00:00:41]}
20. Bg3 {[%clk 00:14:31]} {[%emt 00:00:46]} Ba3 {[%clk 00:05:31]} {[%emt
00:00:16]} 1/2-1/2